fUSD/lending_fUSD_20240803
["ID","MTS","AMOUNT","RATE_DAILY","PERIOD"]
[333947765,1722646247722,-500.0,0.00016438,2]
[333947766,1722646247731,-500.0,0.00016438,2]
[333947767,1722646247740,-818.1,0.00016438,2]
[333947768,1722646247749,-1586.97,0.00016438,2]
[333947769,1722646247758,-500.0,0.00016438,2]
[333947770,1722646247767,-500.0,0.00016438,2]
[333947771,1722646247777,-500.0,0.00016438,2]
[333947772,1722646247786,-500.0,0.00016438,2]
[333947773,1722646247798,-908.67,0.00016438,2]
[333947774,1722646247809,-1355.29,0.00016438,2]
[333947775,1722646247818,-500.0,0.00016438,2]
[333947776,1722646247827,-1291.06,0.00016438,2]
[333947777,1722646247836,-1196.5,0.00016438,2]
[333947778,1722646247845,-1073.17,0.00016438,2]
[333947779,1722646247855,-500.0,0.00016438,2]
[333947780,1722646247865,-500.0,0.00016438,2]
[333947781,1722646247874,-632.41,0.00016438,2]
[333947782,1722646247883,-500.0,0.00016438,2]
[333947783,1722646247892,-151.0,0.00016438,2]
[333947784,1722646247901,-500.0,0.00016438,2]
[333947785,1722646247910,-1297.42,0.00016438,2]
[333947786,1722646247920,-500.0,0.00016438,2]
[333947787,1722646247929,-151.0,0.00016438,2]
[333947788,1722646247938,-151.0,0.00016438,2]
[333947789,1722646247948,-712.66,0.00016438,2]
[333947790,1722646247957,-1963.55,0.00016438,2]
[333947791,1722646247966,-500.0,0.00016438,2]
[333947792,1722646247975,-500.0,0.00016438,2]
[333947793,1722646247984,-500.0,0.00016438,2]
[333947794,1722646247993,-1278.55,0.00016438,2]
[333947795,1722646248002,-500.0,0.00016438,2]
[333947796,1722646248011,-2844.23,0.00016438,2]
[333947797,1722646248022,-500.0,0.00016438,2]
[333947798,1722646248031,-2555.12,0.00016438,2]
[333947799,1722646248040,-500.0,0.00016438,2]
[333947800,1722646248051,-500.0,0.00016438,2]
[333947801,1722646248060,-1134.43,0.00016438,2]
[333947802,1722646248069,-500.0,0.00016438,2]
[333947803,1722646248078,-560.06,0.00016438,2]
[333947804,1722646248087,-500.0,0.00016438,2]
[333947805,1722646248096,-541.84,0.00016438,2]
[333947806,1722646248105,-895.55,0.00016438,2]
[333947807,1722646248114,-500.0,0.00016438,2]
[333947808,1722646248123,-531.18,0.00016438,2]
[333947809,1722646248133,-3227.17,0.00016438,2]
[333947810,1722646248142,-500.0,0.00016438,2]
[333947811,1722646248151,-500.0,0.00016438,2]
[333947812,1722646248160,-730.12,0.00016438,2]
[333947813,1722646248169,-731.63,0.00016438,2]
[333947814,1722646248179,-1224.65,0.00016438,2]
[333947815,1722646248188,-776.87,0.00016438,2]
[333947816,1722646248197,-2026.86,0.00016438,2]
[333947817,1722646248206,-965.86,0.00016438,2]
[333947818,1722646248216,-500.0,0.00016438,2]
[333947819,1722646248226,-500.0,0.00016438,2]
[333947820,1722646248235,-582.97,0.00016438,2]
[333947821,1722646248246,-838.32,0.00016438,2]
[333947822,1722646248256,-500.0,0.00016438,2]
[333947823,1722646248265,-500.0,0.00016438,2]
[333947824,1722646248274,-1503.86,0.00016438,2]
[333947825,1722646248283,-500.0,0.00016438,2]
[333947826,1722646248294,-692.13,0.00016438,2]
[333947827,1722646248312,-1921.44,0.00016438,2]
[333947828,1722646248323,-500.0,0.00016438,2]
[333947829,1722646248332,-500.0,0.00016438,2]
[333947830,1722646248342,-500.0,0.00016438,2]
[333947831,1722646248351,-2184.49,0.00016438,2]
[333947832,1722646248360,-500.0,0.00016438,2]
[333947833,1722646248370,-500.0,0.00016438,2]
[333947834,1722646248379,-500.0,0.00016438,2]
[333947835,1722646248388,-500.0,0.00016438,2]
[333947836,1722646248397,-823.0,0.00016438,2]
[333947837,1722646248406,-1192.49,0.00016438,2]
[333947838,1722646248416,-500.0,0.00016438,2]
[333947839,1722646248425,-2057.83,0.00016438,2]
[333947840,1722646248434,-209.90842691,0.00016438,2]
[333947841,1722646248444,-1868.94,0.00016438,2]
[333947842,1722646248454,-500.0,0.00016438,2]
[333947843,1722646248463,-500.0,0.00016438,2]
[333947844,1722646248473,-913.01,0.00016438,2]
[333947845,1722646248482,-500.0,0.00016438,2]
[333947846,1722646248491,-500.0,0.00016438,2]
[333947847,1722646248501,-681.13,0.00016438,2]
[333947848,1722646248510,-500.0,0.00016438,2]
[333947849,1722646248519,-726.41,0.00016438,2]
[333947850,1722646248528,-2862.82,0.00016438,2]
[333947851,1722646248538,-151.0,0.00016438,2]
[333947852,1722646248549,-151.0,0.00016438,2]
[333947853,1722646248558,-554.31,0.00016438,2]
[333947854,1722646248568,-504.95,0.00016438,2]
[333947855,1722646248577,-500.0,0.00016438,2]
[333947856,1722646248586,-2111.56,0.00016438,2]
[333947857,1722646248595,-500.0,0.00016438,2]
[333947858,1722646248604,-1855.3,0.00016438,2]
[333947859,1722646248614,-874.05,0.00016438,2]
[333947860,1722646248623,-622.57,0.00016438,2]
[333947861,1722646248633,-500.0,0.00016438,2]
[333947862,1722646248642,-1150.15,0.00016438,2]
[333947863,1722646248651,-500.0,0.00016438,2]
[333947864,1722646248660,-1815.01,0.00016438,2]
[333947865,1722646248669,-500.0,0.00016438,2]
[333947866,1722646248678,-1833.82,0.00016438,2]
[333947867,1722646248688,-1225.98,0.00016438,2]
[333947868,1722646248697,-1531.46,0.00016438,2]
[333947869,1722646248706,-633.94,0.00016438,2]
[333947870,1722646248715,-665.1,0.00016438,2]
[333947871,1722646248725,-1290.47,0.00016438,2]
[333947872,1722646248735,-500.0,0.00016438,2]
[333947873,1722646248744,-1134.54,0.00016438,2]
[333947874,1722646248754,-1627.81,0.00016438,2]
[333947875,1722646248763,-500.0,0.00016438,2]
[333947876,1722646248773,-500.0,0.00016438,2]
[333947877,1722646248783,-1093.72,0.00016438,2]
[333947878,1722646248793,-500.0,0.00016438,2]
[333947879,1722646248805,-2336.19,0.00016438,2]
[333947880,1722646248814,-500.0,0.00016438,2]
[333947881,1722646248824,-3291.28,0.00016438,2]
[333947882,1722646248833,-886.6,0.00016438,2]
[333947883,1722646248843,-731.58,0.00016438,2]
[333947884,1722646248852,-1461.71,0.00016438,2]
[333947885,1722646248862,-500.0,0.00016438,2]
[333947886,1722646248871,-1022.73,0.00016438,2]
[333947887,1722646248881,-500.0,0.00016438,2]
[333947888,1722646248890,-500.0,0.00016438,2]
[333947889,1722646248899,-500.0,0.00016438,2]
[333947890,1722646248909,-500.0,0.00016438,2]
[333947891,1722646248918,-986.58,0.00016438,2]
[333947892,1722646248927,-500.0,0.00016438,2]
[333947893,1722646248937,-594.55,0.00016438,2]
[333947894,1722646248946,-500.0,0.00016438,2]
[333947895,1722646248956,-537.09,0.00016438,2]
[333947896,1722646248965,-751.1,0.00016438,2]
[333947897,1722646248975,-1945.7,0.00016438,2]
[333947898,1722646248984,-1620.46,0.00016438,2]
[333947899,1722646248994,-500.0,0.00016438,2]
[333947900,1722646249004,-500.0,0.00016438,2]
[333947901,1722646249013,-1791.35,0.00016438,2]
[333947902,1722646249023,-500.0,0.00016438,2]
[333947903,1722646249032,-500.0,0.00016438,2]
[333947904,1722646249042,-1339.12,0.00016438,2]
[333947905,1722646249058,-500.0,0.00016438,2]
[333947906,1722646249067,-1174.81,0.00016438,2]
[333947907,1722646249077,-500.0,0.00016438,2]
[333947908,1722646249087,-2124.35,0.00016438,2]
[333947909,1722646249096,-500.0,0.00016438,2]
[333947910,1722646249107,-500.0,0.00016438,2]
[333947911,1722646249116,-680.94,0.00016438,2]
[333947912,1722646249125,-905.0,0.00016438,2]
[333947913,1722646249136,-500.0,0.00016438,2]
[333947914,1722646249145,-500.0,0.00016438,2]
[333947915,1722646249155,-500.0,0.00016438,2]
[333947916,1722646249165,-761.78,0.00016438,2]
[333947917,1722646249175,-500.0,0.00016438,2]
[333947918,1722646249186,-1041.48,0.00016438,2]
[333947919,1722646249195,-500.0,0.00016438,2]
[333947920,1722646249204,-1507.94,0.00016438,2]
[333947921,1722646249214,-2036.82,0.00016438,2]
[333947922,1722646249225,-500.0,0.00016438,2]
[333947923,1722646249234,-514.99,0.00016438,2]
[333947924,1722646249249,-295.173174,0.00016438,2]
[333947925,1722646249259,-295.173174,0.00016438,2]
[333947926,1722646249268,-500.0,0.00016438,2]
[333947927,1722646249278,-500.0,0.00016438,2]
[333947928,1722646249288,-433.34130292,0.00016438,2]
[333947929,1722646249300,-295.173174,0.00016438,2]
[333947930,1722646249309,-591.05,0.00016438,2]
[333947931,1722646249320,-295.173174,0.00016438,2]
[333947932,1722646249330,-617.53,0.00016438,2]
[333947933,1722646249340,-1788.73,0.00016438,2]
[333947934,1722646249350,-582.96,0.00016438,2]
[333947935,1722646249360,-1611.9,0.00016438,2]
[333947936,1722646249369,-500.0,0.00016438,2]
[333947937,1722646249379,-500.0,0.00016438,2]
[333947938,1722646249388,-500.0,0.00016438,2]
[333947939,1722646249397,-500.0,0.00016438,2]
[333947940,1722646249407,-500.0,0.00016438,2]
[333947941,1722646249416,-976.65,0.00016438,2]
[333947942,1722646249425,-1722.54,0.00016438,2]
[333947943,1722646249436,-2148.76,0.00016438,2]
[333947944,1722646249445,-500.0,0.00016438,2]
[333947945,1722646249455,-500.0,0.00016438,2]
[333947946,1722646249464,-500.0,0.00016438,2]
[333947947,1722646249473,-500.0,0.00016438,2]
[333947948,1722646249483,-1206.09,0.00016438,2]
[333947949,1722646249493,-500.0,0.00016438,2]
[333947950,1722646249503,-654.75,0.00016438,2]
[333947951,1722646249511,-500.0,0.00016438,2]
[333947952,1722646249520,-500.0,0.00016438,2]
[333947953,1722646249530,-500.0,0.00016438,2]
[333947954,1722646249539,-838.95,0.00016438,2]
[333947955,1722646249552,-584.87,0.00016438,2]
[333947956,1722646249568,-500.0,0.00016438,2]
[333947957,1722646249578,-1581.52,0.00016438,2]
[333947958,1722646249588,-1419.43,0.00016438,2]
[333947959,1722646249598,-1125.38,0.00016438,2]
[333947960,1722646249608,-1097.73,0.00016438,2]
[333947961,1722646249617,-500.0,0.00016438,2]
[333947962,1722646249627,-1444.35,0.00016438,2]
[333947963,1722646249637,-1431.5,0.00016438,2]
[333947964,1722646249647,-537.09,0.00016438,2]
[333947965,1722646249657,-500.0,0.00016438,2]
[333947966,1722646249667,-649.36,0.00016438,2]
[333947967,1722646249677,-500.0,0.00016438,2]
[333947968,1722646249687,-500.0,0.00016438,2]
[333947969,1722646249698,-500.0,0.00016438,2]
[333947970,1722646249709,-1533.8,0.00016438,2]
[333947971,1722646249719,-558.24,0.00016438,2]
[333947972,1722646249729,-500.0,0.00016438,2]
[333947973,1722646249739,-1250.88,0.00016438,2]
[333947974,1722646249749,-724.01,0.00016438,2]
[333947975,1722646249759,-500.0,0.00016438,2]
[333947976,1722646249769,-500.0,0.00016438,2]
[333947977,1722646249779,-500.0,0.00016438,2]
[333947978,1722646249789,-801.01,0.00016438,2]
[333947979,1722646249804,-500.0,0.00016438,2]
[333947980,1722646249814,-1252.93,0.00016438,2]
[333947981,1722646249824,-2050.75,0.00016438,2]
[333947982,1722646249835,-500.0,0.00016438,2]
[333947983,1722646249845,-865.14,0.00016438,2]
[333947984,1722646249855,-500.0,0.00016438,2]
[333947985,1722646249865,-500.0,0.00016438,2]
[333947986,1722646249875,-728.98,0.00016438,2]
[333947987,1722646249886,-1548.94,0.00016438,2]
[333947988,1722646249896,-500.0,0.00016438,2]
[333947989,1722646249907,-500.0,0.00016438,2]
[333947990,1722646249917,-500.0,0.00016438,2]
[333947991,1722646250097,-574.71,0.00016438,2]
[333947992,1722646250108,-886.79,0.00016438,2]
[333947993,1722646250118,-2002.31,0.00016438,2]
[333947994,1722646250128,-500.0,0.00016438,2]
[333947995,1722646250138,-550.23,0.00016438,2]
[333947996,1722646250148,-500.0,0.00016438,2]
[333947997,1722646250158,-917.83,0.00016438,2]
[333947998,1722646250168,-500.0,0.00016438,2]
[333947999,1722646250178,-707.12,0.00016438,2]
[333948000,1722646250188,-500.0,0.00016438,2]
[333948001,1722646250198,-500.0,0.00016438,2]
[333948002,1722646250207,-500.0,0.00016438,2]
[333948003,1722646250217,-814.17,0.00016438,2]
[333948004,1722646250227,-500.0,0.00016438,2]
[333948005,1722646250237,-867.34,0.00016438,2]
[333948006,1722646250249,-500.0,0.00016438,2]
[333948007,1722646250258,-2063.51,0.00016438,2]
[333948008,1722646250268,-555.06,0.00016438,2]
[333948009,1722646250278,-500.0,0.00016438,2]
[333948010,1722646250290,-500.0,0.00016438,2]
[333948011,1722646250300,-559.56,0.00016438,2]
[333948012,1722646250310,-2305.06,0.00016438,2]
[333948013,1722646250320,-500.0,0.00016438,2]
[333948014,1722646250331,-500.0,0.00016438,2]
[333948015,1722646250342,-1211.46,0.00016438,2]
[333948016,1722646250351,-1285.79,0.00016438,2]
[333948017,1722646250361,-1290.53,0.00016438,2]
[333948018,1722646250371,-972.57,0.00016438,2]
[333948019,1722646250381,-1030.41,0.00016438,2]
[333948020,1722646250393,-500.0,0.00016438,2]
[333948021,1722646250403,-2136.16,0.00016438,2]
[333948022,1722646250413,-1964.56,0.00016438,2]
[333948023,1722646250423,-500.0,0.00016438,2]
[333948024,1722646250434,-777.75,0.00016438,2]
[333948025,1722646250444,-500.0,0.00016438,2]
[333948026,1722646250453,-1536.42,0.00016438,2]
[333948027,1722646250463,-1026.74,0.00016438,2]
[333948028,1722646250473,-500.0,0.00016438,2]
[333948029,1722646250482,-500.0,0.00016438,2]
[333948030,1722646250492,-500.0,0.00016438,2]
[333948031,1722646250502,-1656.47,0.00016438,2]
[333948032,1722646250513,-500.0,0.00016438,2]
[333948033,1722646250522,-500.0,0.00016438,2]
[333948034,1722646250532,-500.0,0.00016438,2]
[333948035,1722646250541,-1146.86,0.00016438,2]
[333948036,1722646250552,-870.8,0.00016438,2]
[333948037,1722646250561,-539.32,0.00016438,2]
[333948038,1722646250571,-500.0,0.00016438,2]
[333948039,1722646250581,-1037.57,0.00016438,2]
[333948040,1722646250590,-17256.68,0.00016438,2]
[333948041,1722646250600,-500.0,0.00016438,2]
[333948042,1722646250610,-1840.5,0.00016438,2]
[333948043,1722646250619,-438.62011473,0.00016438,2]
[333948044,1722646250629,-2469.01,0.00016438,2]
[333948045,1722646250639,-500.0,0.00016438,2]
[333948046,1722646250649,-2931.88,0.00016438,2]
[333948047,1722646250659,-500.0,0.00016438,2]
[333948048,1722646250669,-1456.82,0.00016438,2]
[333948049,1722646250678,-710.31,0.00016438,2]
[333948050,1722646250688,-5097.16,0.00016438,2]
[333948051,1722646250698,-1848.6,0.00016438,2]
[333948052,1722646250708,-644.63,0.00016438,2]
[333948053,1722646250717,-500.0,0.00016438,2]
[333948054,1722646250727,-500.0,0.00016438,2]
[333948055,1722646250737,-500.0,0.00016438,2]
[333948056,1722646250747,-500.0,0.00016438,2]
[333948057,1722646250756,-500.0,0.00016438,2]
[333948058,1722646250766,-500.0,0.00016438,2]
[333948059,1722646250775,-1138.42,0.00016438,2]
[333948060,1722646250785,-2128.77,0.00016438,2]
[333948061,1722646250795,-158.049855,0.00016438,2]
[333948062,1722646250805,-500.0,0.00016438,2]
[333948063,1722646250815,-158.049855,0.00016438,2]
[333948064,1722646250824,-831.07,0.00016438,2]
[333948065,1722646250835,-500.0,0.00016438,2]
[333948066,1722646250844,-500.0,0.00016438,2]
[333948067,1722646250855,-577.83,0.00016438,2]
[333948068,1722646250864,-500.0,0.00016438,2]
[333948069,1722646250874,-570.66,0.00016438,2]
[333948070,1722646250884,-2303.57,0.00016438,2]
[333948071,1722646250894,-158.049855,0.00016438,2]
[333948072,1722646250903,-158.049855,0.00016438,2]
[333948073,1722646250913,-500.0,0.00016438,2]
[333948074,1722646250923,-757.74,0.00016438,2]
[333948075,1722646250932,-1849.08,0.00016438,2]
[333948076,1722646250942,-500.0,0.00016438,2]
[333948077,1722646250952,-1560.27,0.00016438,2]
[333948078,1722646250961,-500.0,0.00016438,2]
[333948079,1722646250971,-500.0,0.00016438,2]
[333948080,1722646250981,-500.0,0.00016438,2]
[333948081,1722646250991,-2349.84,0.00016438,2]
[333948082,1722646251000,-500.0,0.00016438,2]
[333948083,1722646251010,-500.0,0.00016438,2]
[333948084,1722646251020,-500.0,0.00016438,2]
[333948085,1722646251030,-804.72,0.00016438,2]
[333948086,1722646251040,-1165.65,0.00016438,2]
[333948087,1722646251050,-500.0,0.00016438,2]
[333948088,1722646251060,-521.4,0.00016438,2]
[333948089,1722646251070,-500.91,0.00016438,2]
[333948090,1722646251079,-864.17,0.00016438,2]
[333948091,1722646251089,-1023.08,0.00016438,2]
[333948092,1722646251098,-210.0,0.00016438,2]
[333948093,1722646251108,-210.0,0.00016438,2]
[333948094,1722646251118,-500.0,0.00016438,2]
[333948095,1722646251127,-500.0,0.00016438,2]
[333948096,1722646251137,-1338.91,0.00016438,2]
[333948097,1722646251147,-500.0,0.00016438,2]
[333948098,1722646251157,-475.37011267,0.00016438,2]
[333948099,1722646251166,-1193.39,0.00016438,2]
[333948100,1722646251176,-210.0,0.00016438,2]
[333948101,1722646251186,-1260.28,0.00016438,2]
[333948102,1722646251196,-210.0,0.00016438,2]
[333948103,1722646251206,-3341.75,0.00016438,2]
[333948104,1722646251216,-589.83,0.00016438,2]
[333948105,1722646251225,-10986.36,0.00016438,2]
[333948106,1722646251235,-1194.95,0.00016438,2]
[333948107,1722646251246,-500.0,0.00016438,2]
[333948108,1722646251257,-1677.15,0.00016438,2]
[333948109,1722646251267,-500.0,0.00016438,2]
[333948110,1722646251277,-1429.3,0.00016438,2]
[333948111,1722646251288,-500.0,0.00016438,2]
[333948112,1722646251301,-500.0,0.00016438,2]
[333948113,1722646251310,-500.0,0.00016438,2]
[333948114,1722646251320,-500.0,0.00016438,2]
[333948115,1722646251331,-1638.59,0.00016438,2]
[333948116,1722646251341,-6342.91,0.00016438,2]
[333948117,1722646251352,-500.0,0.00016438,2]
[333948118,1722646251362,-845.43,0.00016438,2]
[333948119,1722646251373,-21648.39,0.00016438,2]
[333948120,1722646251383,-3582.06,0.00016438,2]
[333948121,1722646251393,-500.0,0.00016438,2]
[333948122,1722646251403,-500.0,0.00016438,2]
[333948123,1722646251413,-3312.03,0.00016438,2]
[333948124,1722646251423,-2439.79,0.00016438,2]
[333948125,1722646251433,-3096.3,0.00016438,2]
[333948126,1722646251443,-1955.15,0.00016438,2]
[333948127,1722646251453,-500.0,0.00016438,2]
[333948128,1722646251462,-714.68,0.00016438,2]
[333948129,1722646251472,-6206.0,0.00016438,2]
[333948130,1722646251482,-500.0,0.00016438,2]
[333948131,1722646251492,-958.11,0.00016438,2]
[333948132,1722646251501,-632.6,0.00016438,2]
[333948133,1722646251511,-654.09,0.00016438,2]
[333948134,1722646251521,-1074.98,0.00016438,2]
[333948135,1722646251530,-9666.4,0.00016438,2]
[333948136,1722646251540,-1153.52,0.00016438,2]
[333948137,1722646251550,-500.0,0.00016438,2]
[333948138,1722646251560,-500.0,0.00016438,2]
[333948139,1722646251570,-1560.69,0.00016438,2]
[333948140,1722646251579,-984.76,0.00016438,2]
[333948141,1722646251589,-2742.78,0.00016438,2]
[333948142,1722646251600,-511.96,0.00016438,2]
[333948143,1722646251610,-2925.61,0.00016438,2]
[333948144,1722646251620,-500.0,0.00016438,2]
[333948145,1722646251629,-2578.2,0.00016438,2]
[333948146,1722646251639,-500.0,0.00016438,2]
[333948147,1722646251649,-1468.63,0.00016438,2]
[333948148,1722646251659,-500.0,0.00016438,2]
[333948149,1722646251669,-7379.93,0.00016438,2]
[333948150,1722646251678,-4336.43,0.00016438,2]
[333948151,1722646251688,-8072.34,0.00016438,2]
[333948152,1722646251698,-500.0,0.00016438,2]
[333948153,1722646251707,-500.0,0.00016438,2]
[333948154,1722646251717,-500.0,0.00016438,2]
[333948155,1722646251726,-945.55,0.00016438,2]
[333948156,1722646251735,-500.0,0.00016438,2]
[333948157,1722646251746,-1426.33,0.00016438,2]
[333948158,1722646251755,-1005.66,0.00016438,2]
[333948159,1722646251765,-832.96,0.00016438,2]
[333948160,1722646251775,-11283.68,0.00016438,2]
[333948161,1722646251784,-500.0,0.00016438,2]
[333948162,1722646251794,-1598.13,0.00016438,2]
[333948163,1722646251804,-500.0,0.00016438,2]
[333948164,1722646251815,-2279.27,0.00016438,2]
[333948165,1722646251824,-1431.66,0.00016438,2]
[333948166,1722646251834,-658.82,0.00016438,2]
[333948167,1722646251844,-1253.22,0.00016438,2]
[333948168,1722646251854,-500.0,0.00016438,2]
[333948169,1722646251864,-3974.4,0.00016438,2]
[333948170,1722646251874,-500.0,0.00016438,2]
[333948171,1722646251883,-4493.31,0.00016438,2]
[333948172,1722646251893,-500.0,0.00016438,2]
[333948173,1722646251903,-2243.79,0.00016438,2]
[333948174,1722646251913,-10005.07,0.00016438,2]
[333948175,1722646251922,-833.66,0.00016438,2]
[333948176,1722646251932,-2080.74,0.00016438,2]
[333948177,1722646251942,-50901.31,0.00016438,2]
[333948178,1722646251951,-1618.41,0.00016438,2]
[333948179,1722646251961,-770.86,0.00016438,2]
[333948180,1722646251971,-500.0,0.00016438,2]
[333948181,1722646251981,-500.0,0.00016438,2]
[333948182,1722646251991,-3151.92,0.00016438,2]
[333948183,1722646252001,-1836.92,0.00016438,2]
[333948184,1722646252011,-519.17,0.00016438,2]
[333948185,1722646252021,-706.21657748,0.00016438,2]
[333948186,1722646253107,-273.13342252,0.00016438,2]
[333948187,1722646253116,-319.26657698,0.00016438,2]
[333948188,1722646253128,-2661.44342302,0.00016438,2]
[333948189,1722646253137,-715.47,0.00016438,2]
[333948190,1722646253146,-500.0,0.00016438,2]
[333948191,1722646253156,-500.0,0.00016438,2]
[333948192,1722646253165,-568.81574786,0.00016438,2]
[333948193,1722646253180,-92.38425214,0.00016438,2]
[333948194,1722646253190,-500.0,0.00016438,2]
[333948195,1722646253199,-500.0,0.00016438,2]
[333948196,1722646253209,-1203.22697416,0.00016438,2]
[333948197,1722646255825,-3398.26302584,0.00016438,2]
[333948198,1722646255835,-1383.18,0.00016438,2]
[333948199,1722646255844,-672.63,0.00016438,2]
[333948200,1722646255853,-634.38,0.00016438,2]
[333948201,1722646255863,-500.0,0.00016438,2]
[333948202,1722646255872,-4520.72,0.00016438,2]
[333948203,1722646255881,-500.0,0.00016438,2]
[333948204,1722646255890,-500.0,0.00016438,2]
[333948205,1722646255899,-1532.35,0.00016438,2]
[333948206,1722646255908,-1314.34,0.00016438,2]
[333948207,1722646255917,-2319.25,0.00016438,2]
[333948208,1722646255927,-1058.87,0.00016438,2]
[333948209,1722646255936,-500.0,0.00016438,2]
[333948210,1722646255945,-500.0,0.00016438,2]
[333948211,1722646255954,-1395.16,0.00016438,2]
[333948212,1722646255964,-966.87,0.00016438,2]
[333948213,1722646255973,-10719.75,0.00016438,2]
[333948214,1722646255982,-2716.92,0.00016438,2]
[333948215,1722646255991,-500.0,0.00016438,2]
[333948216,1722646256000,-1393.41,0.00016438,2]
[333948217,1722646256009,-2824.64,0.00016438,2]
[333948218,1722646256019,-807.3,0.00016438,2]
[333948219,1722646256028,-500.0,0.00016438,2]
[333948220,1722646256038,-500.0,0.00016438,2]
[333948221,1722646256047,-2032.21,0.00016438,2]
[333948222,1722646256059,-500.0,0.00016438,2]
[333948223,1722646256068,-1103.77,0.00016438,2]
[333948224,1722646256077,-500.0,0.00016438,2]
[333948225,1722646256086,-4384.78,0.00016438,2]
[333948226,1722646256095,-2028.85,0.00016438,2]
[333948227,1722646256104,-500.0,0.00016438,2]
[333948228,1722646256113,-500.0,0.00016438,2]
[333948229,1722646256123,-6519.67,0.00016438,2]
[333948230,1722646256132,-500.0,0.00016438,2]
[333948231,1722646256141,-1499.96,0.00016438,2]
[333948232,1722646256150,-275.86810743,0.00016438,2]
[333948233,1722646256163,-224.13189257,0.00016438,2]
[333948234,1722646256172,-591.67,0.00016438,2]
[333948235,1722646256181,-4106.26,0.00016438,2]
[333948236,1722646256190,-520.45811773,0.00016438,2]
[333948237,1722646256201,-1694.97188227,0.00016438,2]
[333948238,1722646256210,-500.0,0.00016438,2]
[333948239,1722646256219,-5539.74,0.00016438,2]
[333948240,1722646256228,-500.0,0.00016438,2]
[333948241,1722646256237,-1236.04774076,0.00016438,2]
[333948242,1722646256263,-800.48498193,0.00016438,2]
[333948243,1722646256291,-166.59727731,0.00016438,2]
[333948244,1722646256299,-400.0,0.00016438,2]
[333948245,1722646256309,-766.73510545,0.00016438,2]
[333948246,1722646256351,-1183.45489455,0.00016438,2]
[333948247,1722646256360,-309.23318431,0.00016438,2]
[333948248,1722646256371,-335.60142443,0.00016438,2]
[333948249,1722646256383,-1384.35305882,0.00016438,2]
[333948250,1722646256393,-3.11233244,0.00016438,2]
[333948251,1722646256403,-500.0,0.00016438,2]
[333948252,1722646256411,-102.56531343,0.00016438,2]
[333948253,1722646256437,-1011.0,0.00016438,2]
[333948254,1722646256446,-617.99468657,0.00016438,2]
[333948255,1722646256456,-500.0,0.00016438,2]
[333948256,1722646256465,-2402.56,0.00016438,2]
[333948257,1722646256474,-500.0,0.00016438,2]
[333948258,1722646256483,-893.19,0.00016438,2]
[333948259,1722646256493,-713.12,0.00016438,2]
[333948260,1722646256502,-628.53,0.00016438,2]
[333948261,1722646256511,-500.0,0.00016438,2]
[333948262,1722646256521,-2115.34,0.00016438,2]
[333948263,1722646256530,-8058.39,0.00016438,2]
[333948264,1722646256539,-1300.87,0.00016438,2]